[Event "Kvibergspelen September 2019"]
[Site "Prioritet Serneke Arena, Krutvagen 2, Gothenburg, Sweden"]
[Date "2019.09.28"]
[Round "5.4"]
[White "Schandorff, Lars"]
[Black "Pantzar, Milton"]
[Result "1/2-1/2"]
[TimeControl "15 minutes + 5 seconds per move from move one (Round 1 - 4) / 90 minutes + 30 seconds per move from move one (Round 5 - 8)"]
[WhiteTitle "GM"]
[BlackTitle "FM"]
[WhiteFideId "1400070"]
[BlackFideId "1721003"]
[WhiteElo "2496"]
[BlackElo "2376"]

1. Nf3 {[%clk 01:30:52]} {[%emt 00:00:06]} d5 {[%clk 01:30:36]} {[%emt
00:00:25]} 2. e3 {[%clk 01:31:11]} {[%emt 00:00:11]} Nf6 {[%clk 01:29:06]}
{[%emt 00:02:01]} 3. c4 {[%clk 01:31:33]} {[%emt 00:00:07]} c6 {[%clk
01:28:49]} {[%emt 00:00:47]} 4. Nc3 {[%clk 01:31:35]} {[%emt 00:00:26]} e6
{[%clk 01:28:14]} {[%emt 00:01:07]} 5. b3 {[%clk 01:31:35]} {[%emt 00:00:29]}
Bd6 {[%clk 01:27:26]} {[%emt 00:01:19]} 6. Bb2 {[%clk 01:31:38]} {[%emt
00:00:27]} Nbd7 {[%clk 01:26:30]} {[%emt 00:01:27]} 7. d4 {[%clk 01:31:06]}
{[%emt 00:01:01]} b6 {[%clk 01:23:18]} {[%emt 00:03:43]} 8. Bd3 {[%clk
01:30:28]} {[%emt 00:01:07]} Bb7 {[%clk 01:23:32]} {[%emt 00:00:17]} 9. O-O
{[%clk 01:30:33]} {[%emt 00:00:24]} O-O {[%clk 01:22:07]} {[%emt 00:01:55]} 10.
Rc1 {[%clk 01:21:57]} {[%emt 00:09:06]} Qe7 {[%clk 01:12:32]} {[%emt 00:10:06]}
11. Re1 {[%clk 01:14:10]} {[%emt 00:08:17]} Rac8 {[%clk 01:05:35]} {[%emt
00:07:28]} 12. cxd5 {[%clk 01:03:04]} {[%emt 00:11:36]} cxd5 {[%clk 01:01:49]}
{[%emt 00:04:16]} 13. Re2 {[%clk 01:00:42]} {[%emt 00:02:51]} a6 {[%clk
00:31:47]} {[%emt 00:30:33]} 14. Rec2 {[%clk 00:59:42]} {[%emt 00:01:29]} b5
{[%clk 00:26:11]} {[%emt 00:06:07]} 15. a4 {[%clk 00:57:55]} {[%emt 00:02:16]}
b4 {[%clk 00:24:48]} {[%emt 00:01:54]} 16. Ne2 {[%clk 00:58:14]} {[%emt
00:00:09]} Ne4 {[%clk 00:21:18]} {[%emt 00:04:02]} 17. Ng3 {[%clk 00:56:32]}
{[%emt 00:02:11]} f5 {[%clk 00:18:29]} {[%emt 00:03:19]} 18. Qf1 {[%clk
00:40:19]} {[%emt 00:16:42]} Rxc2 {[%clk 00:17:43]} {[%emt 00:01:17]} 19. Rxc2
{[%clk 00:38:00]} {[%emt 00:02:49]} Ra8 {[%clk 00:17:43]} {[%emt 00:00:31]} 20.
Ne2 {[%clk 00:36:34]} {[%emt 00:01:55]} a5 {[%clk 00:11:19]} {[%emt 00:06:54]}
21. Bb5 {[%clk 00:33:26]} {[%emt 00:03:39]} Rc8 {[%clk 00:06:03]} {[%emt
00:05:46]} 22. Rxc8+ {[%clk 00:29:08]} {[%emt 00:04:47]} Bxc8 {[%clk 00:06:31]}
{[%emt 00:00:02]} 23. Qc1 {[%clk 00:29:19]} {[%emt 00:00:18]} Bb7 {[%clk
00:03:09]} {[%emt 00:03:52]} 24. Nf4 {[%clk 00:29:14]} {[%emt 00:00:35]} Nf8
{[%clk 00:02:41]} {[%emt 00:00:59]} 25. Nd3 {[%clk 00:21:44]} {[%emt 00:07:59]}
Qc7 {[%clk 00:02:55]} {[%emt 00:00:16]} 26. Qxc7 {[%clk 00:21:44]} {[%emt
00:00:31]} Bxc7 {[%clk 00:03:24]} {[%emt 00:00:01]} 27. Nc5 {[%clk 00:21:59]}
{[%emt 00:00:14]} Bc8 {[%clk 00:03:30]} {[%emt 00:00:24]} 28. Kf1 {[%clk
00:19:04]} {[%emt 00:03:25]} Kf7 {[%clk 00:02:54]} {[%emt 00:01:06]} 29. Ke2
{[%clk 00:18:46]} {[%emt 00:00:48]} Ke7 {[%clk 00:03:13]} {[%emt 00:00:12]} 30.
g3 {[%clk 00:18:19]} {[%emt 00:00:57]} Nd7 {[%clk 00:02:51]} {[%emt 00:00:52]}
31. Nxd7 {[%clk 00:13:05]} {[%emt 00:05:44]} Bxd7 {[%clk 00:03:16]} {[%emt
00:00:05]} 32. Bd3 {[%clk 00:12:22]} {[%emt 00:01:12]} Bc8 {[%clk 00:02:37]}
{[%emt 00:01:10]} 33. Ne1 {[%clk 00:11:38]} {[%emt 00:01:13]} g5 {[%clk
00:02:32]} {[%emt 00:00:35]} 34. f3 {[%clk 00:09:56]} {[%emt 00:02:12]} 1/2-1/2

[Event "Kvibergspelen September 2019"]
[Site "Prioritet Serneke Arena, Krutvagen 2, Gothenburg, Sweden"]
[Date "2019.09.28"]
[Round "5.5"]
[White "Akesson, Ralf"]
[Black "Seo, Jung Min"]
[Result "1/2-1/2"]
[TimeControl "15 minutes + 5 seconds per move from move one (Round 1 - 4) / 90 minutes + 30 seconds per move from move one (Round 5 - 8)"]
[WhiteTitle "GM"]
[BlackTitle "FM"]
[WhiteFideId "1700120"]
[BlackFideId "1734687"]
[WhiteElo "2367"]
[BlackElo "2437"]

1. d4 {[%clk 01:29:37]} {[%emt 00:01:22]} Nf6 {[%clk 01:31:27]} {[%emt
00:00:04]} 2. c4 {[%clk 01:29:33]} {[%emt 00:00:33]} b6 {[%clk 01:31:53]}
{[%emt 00:00:04]} 3. Nc3 {[%clk 01:29:11]} {[%emt 00:00:51]} Bb7 {[%clk
01:32:19]} {[%emt 00:00:04]} 4. f3 {[%clk 01:25:01]} {[%emt 00:04:39]} d5
{[%clk 01:29:09]} {[%emt 00:03:40]} 5. cxd5 {[%clk 01:25:02]} {[%emt 00:00:29]}
Nxd5 {[%clk 01:29:37]} {[%emt 00:00:03]} 6. e4 {[%clk 01:23:18]} {[%emt
00:02:14]} Nxc3 {[%clk 01:29:54]} {[%emt 00:00:13]} 7. bxc3 {[%clk 01:23:46]}
{[%emt 00:00:02]} g6 {[%clk 01:26:40]} {[%emt 00:03:44]} 8. Bb5+ {[%clk
01:20:05]} {[%emt 00:04:11]} c6 {[%clk 01:26:49]} {[%emt 00:00:21]} 9. Ba4
{[%clk 01:19:12]} {[%emt 00:01:22]} Bg7 {[%clk 01:26:28]} {[%emt 00:00:52]} 10.
Ne2 {[%clk 01:19:28]} {[%emt 00:00:14]} O-O {[%clk 01:25:02]} {[%emt 00:01:56]}
11. O-O {[%clk 01:18:56]} {[%emt 00:01:01]} Nd7 {[%clk 01:24:22]} {[%emt
00:01:10]} 12. Bg5 {[%clk 01:17:37]} {[%emt 00:01:50]} Re8 {[%clk 01:20:18]}
{[%emt 00:04:34]} 13. Qd2 {[%clk 01:11:47]} {[%emt 00:06:20]} Qc7 {[%clk
01:19:24]} {[%emt 00:01:23]} 14. Bf4 {[%clk 01:05:26]} {[%emt 00:06:51]} e5
{[%clk 01:19:14]} {[%emt 00:00:41]} 15. Bg3 {[%clk 01:05:49]} {[%emt 00:00:07]}
b5 {[%clk 01:15:35]} {[%emt 00:04:10]} 16. Bb3 {[%clk 01:02:27]} {[%emt
00:03:52]} Qb6 {[%clk 01:14:02]} {[%emt 00:02:03]} 17. Kh1 {[%clk 00:58:36]}
{[%emt 00:04:21]} exd4 {[%clk 01:07:18]} {[%emt 00:07:14]} 18. cxd4 {[%clk
00:53:38]} {[%emt 00:05:28]} c5 {[%clk 01:07:30]} {[%emt 00:00:19]} 19. Rac1
{[%clk 00:46:35]} {[%emt 00:07:32]} Rac8 {[%clk 01:02:09]} {[%emt 00:05:51]} 20.
dxc5 {[%clk 00:37:54]} {[%emt 00:09:12]} Nxc5 {[%clk 01:01:56]} {[%emt
00:00:43]} 21. Bf2 {[%clk 00:37:51]} {[%emt 00:00:32]} Nxb3 {[%clk 00:56:14]}
{[%emt 00:06:12]} 22. axb3 {[%clk 00:35:18]} {[%emt 00:03:03]} Rxc1 {[%clk
00:52:50]} {[%emt 00:03:54]} 23. Qxc1 {[%clk 00:33:40]} {[%emt 00:02:07]} Qe6
{[%clk 00:52:44]} {[%emt 00:00:36]} 24. Qc7 {[%clk 00:31:30]} {[%emt 00:02:39]}
Qe7 {[%clk 00:49:15]} {[%emt 00:04:00]} 25. Rc1 {[%clk 00:28:47]} {[%emt
00:03:13]} a6 {[%clk 00:48:43]} {[%emt 00:01:03]} 26. Qb6 {[%clk 00:26:44]}
{[%emt 00:02:33]} Bc8 {[%clk 00:47:39]} {[%emt 00:01:34]} 27. Bd4 {[%clk
00:24:41]} {[%emt 00:02:33]} Qe6 {[%clk 00:46:51]} {[%emt 00:01:18]} 28. Qxe6
{[%clk 00:23:35]} {[%emt 00:01:36]} Bxe6 {[%clk 00:47:19]} {[%emt 00:00:02]} 29.
Bxg7 {[%clk 00:23:54]} {[%emt 00:00:10]} Kxg7 {[%clk 00:47:48]} {[%emt
00:00:01]} 30. Nd4 {[%clk 00:23:53]} {[%emt 00:00:31]} Rd8 {[%clk 00:47:43]}
{[%emt 00:00:35]} 31. Nxe6+ {[%clk 00:22:19]} {[%emt 00:02:04]} fxe6 {[%clk
00:48:11]} {[%emt 00:00:02]} 32. h4 {[%clk 00:20:53]} {[%emt 00:01:56]} Rd3
{[%clk 00:47:03]} {[%emt 00:01:38]} 33. b4 {[%clk 00:19:42]} {[%emt 00:01:42]}
Rd4 {[%clk 00:47:16]} {[%emt 00:00:16]} 34. Rc6 {[%clk 00:19:31]} {[%emt
00:00:41]} Kf6 {[%clk 00:47:27]} {[%emt 00:00:19]} 35. Rxa6 {[%clk 00:19:56]}
{[%emt 00:00:05]} h5 {[%clk 00:47:02]} {[%emt 00:00:55]} 36. Kh2 {[%clk
00:20:04]} {[%emt 00:00:23]} Rxb4 {[%clk 00:47:28]} {[%emt 00:00:04]} 37. Rb6
{[%clk 00:20:00]} {[%emt 00:00:34]} Rb2 {[%clk 00:46:45]} {[%emt 00:01:11]} 38.
Kg3 {[%clk 00:20:14]} {[%emt 00:00:16]} Ke5 {[%clk 00:46:21]} {[%emt 00:00:55]}
39. f4+ {[%clk 00:19:03]} {[%emt 00:01:42]} Kxe4 {[%clk 00:42:01]} {[%emt
00:04:49]} 40. Rxe6+ {[%clk 00:19:17]} {[%emt 00:00:16]} Kf5 {[%clk 00:42:30]}
{[%emt 00:00:01]} 41. Re5+ {[%clk 00:19:29]} {[%emt 00:00:18]} Kf6 {[%clk
00:42:52]} {[%emt 00:00:08]} 42. Kf3 {[%clk 00:19:25]} {[%emt 00:00:34]} Rb3+
{[%clk 00:42:18]} {[%emt 00:01:04]} 43. Ke4 {[%clk 00:15:24]} {[%emt 00:04:30]}
Rb4+ {[%clk 00:40:29]} {[%emt 00:02:19]} 44. Kf3 {[%clk 00:15:46]} {[%emt
00:00:08]} Rb1 {[%clk 00:40:57]} {[%emt 00:00:03]} 45. Rc5 {[%clk 00:14:57]}
{[%emt 00:01:19]} b4 {[%clk 00:41:03]} {[%emt 00:00:24]} 46. Rc6+ {[%clk
00:13:57]} {[%emt 00:01:30]} Kf7 {[%clk 00:41:26]} {[%emt 00:00:07]} 47. Rc7+
{[%clk 00:14:20]} {[%emt 00:00:07]} Ke8 {[%clk 00:41:37]} {[%emt 00:00:19]} 48.
Rb7 {[%clk 00:12:20]} {[%emt 00:02:30]} b3 {[%clk 00:41:56]} {[%emt 00:00:11]}
49. Kg3 {[%clk 00:11:19]} {[%emt 00:01:32]} b2 {[%clk 00:41:33]} {[%emt
00:00:53]} 50. Kh2 {[%clk 00:10:19]} {[%emt 00:01:29]} Kd8 {[%clk 00:41:54]}
{[%emt 00:00:08]} 51. g3 {[%clk 00:10:31]} {[%emt 00:00:18]} Kc8 {[%clk
00:42:20]} {[%emt 00:00:04]} 52. Rb3 {[%clk 00:10:54]} {[%emt 00:00:07]} Kd7
{[%clk 00:42:45]} {[%emt 00:00:04]} 53. Kg2 {[%clk 00:11:05]} {[%emt 00:00:19]}
Kc6 {[%clk 00:43:11]} {[%emt 00:00:05]} 54. Rb8 {[%clk 00:11:23]} {[%emt
00:00:12]} Kd5 {[%clk 00:43:31]} {[%emt 00:00:09]} 55. Rb7 {[%clk 00:11:35]}
{[%emt 00:00:19]} Ke4 {[%clk 00:43:55]} {[%emt 00:00:05]} 56. Rb8 {[%clk
00:11:44]} {[%emt 00:00:22]} Kf5 {[%clk 00:44:19]} {[%emt 00:00:06]} 57. Rb5+
{[%clk 00:12:07]} {[%emt 00:00:08]} Ke6 {[%clk 00:44:44]} {[%emt 00:00:04]} 58.
Rb8 {[%clk 00:12:30]} {[%emt 00:00:08]} Kd5 {[%clk 00:45:05]} {[%emt 00:00:08]}
59. Rb7 {[%clk 00:12:53]} {[%emt 00:00:08]} Kc4 {[%clk 00:45:26]} {[%emt
00:00:08]} 60. Rb8 {[%clk 00:13:09]} {[%emt 00:00:14]} Kc3 {[%clk 00:45:46]}
{[%emt 00:00:09]} 61. Rc8+ {[%emt 00:00:28]} 1/2-1/2

[Event "Kvibergspelen September 2019"]
[Site "Prioritet Serneke Arena, Krutvagen 2, Gothenburg, Sweden"]
[Date "2019.09.28"]
[Round "5.6"]
[White "Cramling, Pia"]
[Black "Carlsson, Ludvig"]
[Result "0-1"]
[TimeControl "15 minutes + 5 seconds per move from move one (Round 1 - 4) / 90 minutes + 30 seconds per move from move one (Round 5 - 8)"]
[WhiteTitle "GM"]
[BlackTitle "CM"]
[WhiteFideId "1700030"]
[BlackFideId "1727010"]
[WhiteElo "2487"]
[BlackElo "2066"]

1. Nf3 {[%clk 01:30:54]} {[%emt 00:00:06]} Nf6 {[%clk 01:30:44]} {[%emt
00:00:17]} 2. c4 {[%clk 01:31:16]} {[%emt 00:00:07]} e6 {[%clk 01:30:45]}
{[%emt 00:00:28]} 3. g3 {[%clk 01:31:30]} {[%emt 00:00:16]} b6 {[%clk
01:31:06]} {[%emt 00:00:10]} 4. Bg2 {[%clk 01:31:52]} {[%emt 00:00:08]} Bb7
{[%clk 01:31:30]} {[%emt 00:00:06]} 5. Nc3 {[%clk 01:30:40]} {[%emt 00:01:42]}
c5 {[%clk 01:31:43]} {[%emt 00:00:17]} 6. O-O {[%clk 01:30:45]} {[%emt
00:00:25]} a6 {[%clk 01:32:06]} {[%emt 00:00:08]} 7. d4 {[%clk 01:29:18]}
{[%emt 00:01:57]} cxd4 {[%clk 01:32:06]} {[%emt 00:00:29]} 8. Qxd4 {[%clk
01:29:43]} {[%emt 00:00:06]} Nc6 {[%clk 01:32:25]} {[%emt 00:00:11]} 9. Qf4
{[%clk 01:29:47]} {[%emt 00:00:25]} Ne7 {[%clk 01:32:46]} {[%emt 00:00:09]} 10.
e4 {[%clk 01:20:42]} {[%emt 00:09:35]} Ng6 {[%clk 01:20:18]} {[%emt 00:12:58]}
11. Qe3 {[%clk 01:19:55]} {[%emt 00:01:17]} h5 {[%clk 01:20:28]} {[%emt
00:00:21]} 12. Qe2 {[%clk 01:00:16]} {[%emt 00:20:09]} h4 {[%clk 01:12:36]}
{[%emt 00:08:22]} 13. Nxh4 {[%clk 00:54:08]} {[%emt 00:06:38]} Nxh4 {[%clk
01:11:51]} {[%emt 00:01:15]} 14. gxh4 {[%clk 00:54:36]} {[%emt 00:00:02]} Qc7
{[%clk 01:12:03]} {[%emt 00:00:18]} 15. Bg5 {[%clk 00:54:37]} {[%emt 00:00:30]}
Bd6 {[%clk 01:11:21]} {[%emt 00:01:12]} 16. Rfe1 {[%clk 00:44:08]} {[%emt
00:10:58]} Bxh2+ {[%clk 01:01:08]} {[%emt 00:10:44]} 17. Kf1 {[%clk 00:44:32]}
{[%emt 00:00:05]} Be5 {[%clk 01:01:25]} {[%emt 00:00:13]} 18. Rac1 {[%clk
00:39:53]} {[%emt 00:05:10]} Nh5 {[%emt 00:05:05]} 19. Nd5 {[%clk 00:27:58]}
{[%emt 00:12:22]} exd5 {[%clk 00:55:42]} {[%emt 00:01:41]} 20. exd5 {[%clk
00:28:23]} {[%emt 00:00:05]} d6 {[%clk 00:56:01]} {[%emt 00:00:10]} 21. Bf3
{[%clk 00:19:23]} {[%emt 00:09:30]} Nf6 {[%clk 00:55:45]} {[%emt 00:00:47]} 22.
Bg2 {[%clk 00:19:36]} {[%emt 00:00:17]} Nh5 {[%clk 00:52:10]} {[%emt 00:04:06]}
23. Bf3 {[%clk 00:19:59]} {[%emt 00:00:06]} Nf6 {[%clk 00:52:36]} {[%emt
00:00:05]} 24. Bg2 {[%clk 00:20:25]} {[%emt 00:00:03]} Kf8 {[%clk 00:52:59]}
{[%emt 00:00:07]} 25. f4 {[%clk 00:18:35]} {[%emt 00:02:19]} Nh5 {[%clk
00:49:46]} {[%emt 00:03:43]} 26. Qf2 {[%clk 00:17:59]} {[%emt 00:01:06]} Bf6
{[%clk 00:49:57]} {[%emt 00:00:19]} 27. Bf3 {[%clk 00:15:34]} {[%emt 00:02:53]}
Qc5 {[%clk 00:48:15]} {[%emt 00:02:14]} 28. Qd2 {[%clk 00:15:41]} {[%emt
00:00:23]} Bc8 {[%clk 00:47:25]} {[%emt 00:01:20]} 29. Kg2 {[%clk 00:15:27]}
{[%emt 00:00:44]} Bxg5 {[%clk 00:38:26]} {[%emt 00:09:29]} 30. fxg5 {[%clk
00:15:21]} {[%emt 00:00:36]} Bf5 {[%clk 00:37:45]} {[%emt 00:01:11]} 31. b4
{[%clk 00:10:53]} {[%emt 00:04:58]} Qc7 {[%clk 00:37:22]} {[%emt 00:00:54]} 32.
c5 {[%clk 00:08:22]} {[%emt 00:03:01]} dxc5 {[%clk 00:35:59]} {[%emt 00:01:53]}
33. d6 {[%clk 00:08:45]} {[%emt 00:00:07]} Rd8 {[%clk 00:36:24]} {[%emt
00:00:04]} 34. bxc5 {[%clk 00:08:56]} {[%emt 00:00:19]} bxc5 {[%clk 00:36:39]}
{[%emt 00:00:15]} 35. Rcd1 {[%clk 00:09:06]} {[%emt 00:00:20]} Qd7 {[%clk
00:36:13]} {[%emt 00:00:57]} 36. Re5 {[%clk 00:03:13]} {[%emt 00:06:23]} Bg4
{[%clk 00:34:51]} {[%emt 00:01:52]} 37. Qe3 {[%clk 00:03:28]} {[%emt 00:00:14]}
Qa4 {[%clk 00:33:00]} {[%emt 00:02:22]} 38. Re4 {[%clk 00:02:42]} {[%emt
00:01:13]} Bxf3+ {[%clk 00:31:37]} {[%emt 00:01:55]} 39. Qxf3 {[%clk 00:03:10]}
{[%emt 00:00:02]} Qc2+ {[%clk 00:31:35]} {[%emt 00:00:31]} 40. Kh3 {[%clk
00:02:49]} {[%emt 00:00:48]} g6 {[%clk 00:31:13]} {[%emt 00:00:56]} 41. Rf1
{[%clk 00:01:40]} {[%emt 00:01:38]} Rh7 {[%clk 00:31:13]} {[%emt 00:00:31]} 42.
Re7 {[%clk 00:01:24]} {[%emt 00:00:46]} Qc4 {[%clk 00:31:20]} {[%emt 00:00:23]}
43. Rc7 {[%clk 00:00:37]} {[%emt 00:01:17]} Nf6 {[%clk 00:30:23]} {[%emt
00:01:27]} 44. Qxf6 {[%clk 00:00:33]} {[%emt 00:00:35]} Qxh4+ {[%clk 00:30:45]}
{[%emt 00:00:07]} 45. Kg2 {[%clk 00:01:01]} Qg4+ {[%clk 00:31:09]} {[%emt
00:00:08]} 0-1

[Event "Kvibergspelen September 2019"]
[Site "Prioritet Serneke Arena, Krutvagen 2, Gothenburg, Sweden"]
[Date "2019.09.28"]
[Round "5.7"]
[White "Lindbol, Aleksander"]
[Black "Bellon Lopez, Juan"]
[Result "0-1"]
[TimeControl "15 minutes + 5 seconds per move from move one (Round 1 - 4) / 90 minutes + 30 seconds per move from move one (Round 5 - 8)"]
[BlackTitle "GM"]
[WhiteFideId "1520644"]
[BlackFideId "2200031"]
[WhiteElo "2216"]
[BlackElo "2334"]

1. e4 {[%clk 01:30:52]} {[%emt 00:00:06]} c5 {[%clk 01:30:35]} {[%emt
00:00:26]} 2. Nf3 {[%clk 01:30:57]} {[%emt 00:00:25]} Nc6 {[%clk 01:30:53]}
{[%emt 00:00:13]} 3. d4 {[%clk 01:31:13]} {[%emt 00:00:13]} cxd4 {[%clk
01:31:15]} {[%emt 00:00:07]} 4. Nxd4 {[%clk 01:31:36]} {[%emt 00:00:09]} e5
{[%clk 01:31:29]} {[%emt 00:00:15]} 5. Nb5 {[%clk 01:29:27]} {[%emt 00:02:39]}
d6 {[%clk 01:31:12]} {[%emt 00:00:47]} 6. c4 {[%clk 01:29:36]} {[%emt
00:00:20]} Nf6 {[%clk 01:31:28]} {[%emt 00:00:14]} 7. N1c3 {[%clk 01:29:01]}
{[%emt 00:01:05]} a6 {[%clk 01:31:43]} {[%emt 00:00:15]} 8. Na3 {[%clk
01:29:21]} {[%emt 00:00:10]} Be7 {[%clk 01:30:48]} {[%emt 00:01:25]} 9. Be2
{[%clk 01:25:59]} {[%emt 00:03:51]} O-O {[%clk 01:30:15]} {[%emt 00:01:02]} 10.
Be3 {[%clk 01:19:48]} {[%emt 00:06:41]} Ne8 {[%clk 01:27:53]} {[%emt 00:02:52]}
11. O-O {[%clk 01:12:23]} {[%emt 00:07:54]} Bg5 {[%clk 01:24:25]} {[%emt
00:03:58]} 12. Nd5 {[%clk 00:58:15]} {[%emt 00:14:38]} Bxe3 {[%clk 01:24:26]}
{[%emt 00:00:30]} 13. Nxe3 {[%clk 00:58:26]} {[%emt 00:00:19]} Qh4 {[%clk
01:19:50]} {[%emt 00:05:05]} 14. Bd3 {[%clk 00:53:31]} {[%emt 00:05:25]} Be6
{[%clk 01:18:40]} {[%emt 00:01:39]} 15. Nd5 {[%clk 00:47:47]} {[%emt 00:06:16]}
f5 {[%clk 01:12:38]} {[%emt 00:06:32]} 16. exf5 {[%clk 00:44:25]} {[%emt
00:03:53]} Bxd5 {[%clk 01:10:31]} {[%emt 00:02:37]} 17. cxd5 {[%clk 00:43:47]}
{[%emt 00:01:08]} Ne7 {[%clk 01:09:54]} {[%emt 00:01:06]} 18. Rc1 {[%clk
00:28:11]} {[%emt 00:16:07]} Qd4 {[%clk 01:02:48]} {[%emt 00:07:36]} 19. Nc2
{[%clk 00:20:47]} {[%emt 00:07:54]} Qxb2 {[%clk 00:57:06]} {[%emt 00:06:12]} 20.
Rb1 {[%clk 00:12:23]} {[%emt 00:08:54]} Qxa2 {[%clk 00:53:39]} {[%emt
00:03:57]} 21. Rxb7 {[%clk 00:12:48]} {[%emt 00:00:05]} Rf7 {[%clk 00:52:16]}
{[%emt 00:01:52]} 22. Qe2 {[%clk 00:08:59]} {[%emt 00:04:20]} Qa5 {[%clk
00:50:06]} {[%emt 00:02:39]} 23. Ne3 {[%clk 00:08:31]} {[%emt 00:00:59]} Nf6
{[%clk 00:49:37]} {[%emt 00:00:59]} 24. Rfb1 {[%clk 00:06:21]} {[%emt
00:02:40]} Qc5 {[%clk 00:43:58]} {[%emt 00:06:06]} 25. Bxa6 {[%clk 00:05:15]}
{[%emt 00:01:38]} Ne4 {[%clk 00:42:52]} {[%emt 00:01:37]} 26. Qc4 {[%clk
00:02:34]} {[%emt 00:03:11]} Qd4 {[%clk 00:34:35]} {[%emt 00:08:47]} 27. Rb8+
{[%clk 00:01:05]} {[%emt 00:01:59]} Rf8 {[%clk 00:34:24]} {[%emt 00:00:41]} 28.
Rxf8+ {[%clk 00:01:05]} {[%emt 00:00:30]} Kxf8 {[%clk 00:34:40]} {[%emt
00:00:15]} 29. Rd1 {[%clk 00:00:33]} {[%emt 00:01:02]} Qxc4 {[%clk 00:30:43]}
{[%emt 00:04:27]} 30. Bxc4 {[%clk 00:01:01]} {[%emt 00:00:02]} Ra3 {[%clk
00:31:01]} {[%emt 00:00:12]} 31. g4 {[%clk 00:00:43]} {[%emt 00:00:47]} g6
{[%clk 00:28:35]} {[%emt 00:02:56]} 32. Rb1 {[%clk 00:00:44]} {[%emt 00:00:29]}
gxf5 {[%clk 00:28:29]} {[%emt 00:00:36]} 33. gxf5 {[%clk 00:00:50]} {[%emt
00:00:24]} Kf7 {[%clk 00:27:18]} {[%emt 00:01:41]} 34. Rb7 {[%clk 00:00:55]}
{[%emt 00:00:25]} Kf6 {[%clk 00:25:54]} {[%emt 00:01:53]} 35. Ng4+ {[%clk
00:00:43]} {[%emt 00:00:41]} Kxf5 {[%clk 00:25:32]} {[%emt 00:00:52]} 36. Rxe7
{[%clk 00:00:34]} {[%emt 00:00:40]} Kxg4 {[%clk 00:25:54]} {[%emt 00:00:07]} 37.
Rxh7 {[%clk 00:00:36]} {[%emt 00:00:28]} Ng5 {[%clk 00:23:55]} {[%emt
00:02:30]} 38. Be2+ {[%clk 00:01:01]} {[%emt 00:00:05]} Kf5 {[%clk 00:23:37]}
{[%emt 00:00:48]} 39. Rh6 {[%clk 00:00:50]} {[%emt 00:00:40]} e4 {[%clk
00:23:25]} {[%emt 00:00:42]} 40. Rxd6 {[%clk 00:00:33]} {[%emt 00:00:47]} Nh3+
{[%clk 00:23:32]} {[%emt 00:00:24]} 41. Kf1 {[%clk 00:00:36]} {[%emt 00:00:27]}
Ra1+ {[%clk 00:23:53]} {[%emt 00:00:09]} 42. Bd1 {[%clk 00:00:40]} {[%emt
00:00:26]} Rxd1+ {[%clk 00:23:58]} {[%emt 00:00:25]} 43. Ke2 {[%clk 00:01:06]}
{[%emt 00:00:04]} Rd3 {[%clk 00:23:31]} {[%emt 00:00:57]} 44. Rd8 {[%clk
00:01:03]} {[%emt 00:00:34]} Nf4+ {[%clk 00:23:44]} {[%emt 00:00:16]} 45. Ke1
{[%clk 00:01:32]} {[%emt 00:00:01]} Nxd5 {[%clk 00:23:42]} {[%emt 00:00:32]} 46.
h4 {[%clk 00:00:34]} {[%emt 00:01:28]} Kg4 {[%clk 00:23:30]} {[%emt 00:00:43]}
47. Rh8 {[%clk 00:00:41]} {[%emt 00:00:23]} Nf4 {[%clk 00:23:24]} {[%emt
00:00:36]} 48. Re8 {[%clk 00:00:41]} {[%emt 00:00:30]} Kf3 {[%clk 00:23:36]}
{[%emt 00:00:18]} 49. Rf8 {[%clk 00:01:10]} {[%emt 00:00:02]} Rd5 {[%clk
00:23:47]} {[%emt 00:00:18]} 50. Rf7 {[%clk 00:00:59]} {[%emt 00:00:41]} Rh5
{[%clk 00:24:06]} {[%emt 00:00:11]} 51. Rg7 {[%clk 00:01:14]} {[%emt 00:00:15]}
Nd3+ {[%clk 00:24:03]} {[%emt 00:00:33]} 0-1